Cogmind - Beta 16.1 @@@ ROGUE MODE // 2026.02.25 @ 09:03:36 Player: Anting Result: Destroyed by HM-XOZ(j) with Overtuned Pulse Rifle Performance ------------- Evolutions (0) 0 Regions Visited (3) 600 Robots Destroyed (20) 100 Value Destroyed (678) 678 Prototype IDs (13) 260 Alien Tech Used (0) 0 Bonus (992) 992 TOTAL SCORE: 2630 Bonus ------- Follower Combat Kills 192 Registered with UFD 300 Met Optimus in HQ 500 Cogmind --------- Core Integrity 0/250 Matter 300/300 Energy 116/125 System Corruption 0% Temperature Cool (16) Movement Hovering (56) Location -8/Scraptown Parts ------- > --- POWER (1) -------- Light Ion Engine > --- PROPULSION (2) --- Airjet Gravmag System > --- UTILITY (2) ------ Large Storage Unit Advanced Weight Redist. System > --- WEAPON (2) ------- Makeshift Spear > --- INVENTORY (15) --- Light Fission Core Gravmag System Improved Sensor Array Surveybot 24 Chip Core Analyzer Particle Charger Improved Reaction Control System Gun Armor Hacking Suite Tech Extrapolator Powered Cannon Long-range Missile Launcher Multitool DRS Beacon (Ready) Peak State ------------ > --- POWER ------------ Subdweller Power Source > --- PROPULSION ------- Wheel Subdweller Monowheel > --- UTILITY ---------- Humpback > --- WEAPON ----------- Subdweller Machine Gun Makeshift Spear > --- INVENTORY -------- Makeshift Power Source Disposable Heat Sink Subdweller Optics Gun Armor Scrap Shield Hacking Suite Cobbler Unit Subdweller Laser Subdweller Laser Powered Cannon Light Assault Rifle Subdweller Machine Gun Subdweller Shrapnel Launcher Multitool Scrap Shield Fragment Scrap Shield Fragment Scrap Shield Fragment SUBCON Basin [Rating: 36] Favorites ----------- Power Subdweller Power Source Engine Subdweller Power Source Propulsion Subdweller Monowheel Treads Light Treads Leg Aluminum Leg Wheel Subdweller Monowheel Hover Unit Airjet Utility Large Storage Unit Device Advanced Weight Redist. System Storage Large Storage Unit Protection Makeshift Medium Armor Plating Weapon Subdweller Machine Gun Energy Gun Subdweller Laser Energy Cannon Subdweller Beam Cannon Ballistic Gun Subdweller Machine Gun Launcher Grenade Launcher Special Weapon Multitool Piercing Weapon Makeshift Spear Build | -11 -10 -10 -8 ------- Run | Yrd Mat Sub Scr Slots Evolved . | . . . . Power . | . . . . Propulsion . | . . . . Utility . | . . . . Weapon . | . . . . Parts Attached 44 | 5 2 26 11 Power 7 | . 1 3 3 Engine 7 | . 1 3 3 Core . | . . . . Reactor . | . . . . Propulsion 14 | 2 . 8 4 Treads 3 | . . 3 . Leg 2 | 2 . . . Wheel 5 | . . 5 . Hover 4 | . . . 4 Flight . | . . . . Utility 7 | 1 1 3 2 Device 2 | . . 1 1 Storage 4 | 1 1 1 1 Processor . | . . . . Hackware . | . . . . Protection 1 | . . 1 . Artifact . | . . . . Weapon 16 | 2 . 12 2 Energy Gun 2 | . . 2 . Energy Cannon 2 | . . 2 . Ballistic Gun 8 | 2 . 6 . Ballistic Cannon . | . . . . Launcher 1 | . . 1 . Special Weapon 2 | . . . 2 Impact Weapon . | . . . . Slashing Weapon . | . . . . Piercing Weapon 1 | . . 1 . Special Melee Weapon . | . . . . Unidentified Prototypes . | . . . . Parts Lost 11 | . . 10 1 Power 3 | . . 2 1 Propulsion 4 | . . 4 . Utility 1 | . . 1 . Weapon 3 | . . 3 . Highest Loss Streak 7 | . . 7 1 To Critical Strikes 2 | . . 2 . Average Backups 11 | 3 5 13 10 Power . | 1 . . . Propulsion . | 1 2 1 . Utility 5 | . 2 4 5 Weapon 3 | . 1 5 2 Tool/Special . | . . . . Unused Backups 40 | 1 1 5 33 Power 2 | 1 . . 1 Propulsion 2 | . . . 2 Utility 21 | . . 2 19 Weapon 13 | . 1 3 9 Tool/Special 2 | . . . 2 Average Slot Usage (%) 92 | . 72 95 90 Engine 13 | . 10 13 13 Treads 4 | . . 9 . Leg 4 | . 28 9 . Wheel 12 | . . 9 15 Hover 6 | . . . 12 Device 5 | . . 4 6 Storage 13 | . 4 14 13 Protection 2 | . . 5 . Energy Gun 1 | . . 3 . Ballistic Gun 13 | . 28 18 8 Special Weapon 2 | . . . 4 Piercing Weapon 9 | . . 3 14 Peak Build Rating 36 | 5 6 36 36 Average Rating 19 | 4 5 16 22 On Entrance 11 | . 4 6 36 Avg Prop Armor Cover (%) 8 | 22 24 10 6 Naked Turns . | . . . . Heaviest Build 211 | 7 25 211 211 Greatest Support 40 | 10 20 40 26 Greatest Overweight (x) 21 | 2 1 21 21 Average Overweight (x) 3 | 1 . 3 3 Largest Inventory Capacity 35 | 8 15 35 35 Average Capacity 18 | 7 8 18 18 Most Carried 35 | 6 7 35 35 Average Carried 15 | 3 5 16 14 Final Capacity 35 | 5 15 35 15 Final Carried 35 | 5 7 35 15 Class Distribution -------------------- 41% | Mutant 40% | Scavenger-Mutant 17% | Hauler-Mutant Dominant Class ---------------- Mutant | -10/Materials Scavenger-Mutant | -10/Subcaves Mutant | -8/Scraptown Resources | -11 -10 -10 -8 ----------- Run | Yrd Mat Sub Scr Matter Collected 870 | 228 44 465 133 Remotely . | . . . . Salvage Created 753 | 22 . 731 . Parts 50 | 5 . 45 . Haulers Intercepted . | . . . . Recyclers Shooed . | . . . . Parts Field Recycled . | . . . . Retrieved Matter . | . . . . Parts Self-Destructed 9 | . . 9 . Prevented . | . . . . Parts Restored . | . . . . Kills | -11 -10 -10 -8 ------- Run | Yrd Mat Sub Scr Combat Hostiles Destroyed 19 | . . 19 . Guns 13 | . . 13 . Cannons 3 | . . 3 . AOE 3 | . . 3 . Classes Destroyed 5 | 1 . 4 . Tunneler 1 | 1 . . . Swarmer 3 | . . 3 . Grunt 2 | . . 2 . Cobbler 1 | . . 1 . Subdweller 14 | . . 14 . Best Kill Streak 4 | 1 . 4 . Combat Bots Only 4 | . . 4 . Max Kills in Single Turn 2 | 1 . 2 . Gunslinging . | . . . . Exploded 2 | . . 2 . Melee . | . . . . Uniques/NPCs Destroyed . | . . . . Combat | -11 -10 -10 -8 -------- Run | Yrd Mat Sub Scr Hostile Shots Fired 117 | . . 99 18 Missed 39 | . . 33 6 Hits 78 | . . 66 12 Projectile 78 | . . 66 12 AOE 2 | . . 2 . Critical Strikes 6 | . . 4 2 Damage Taken 1694 | . 10 1486 198 Core 265 | . 10 185 70 Absorbed by Shields . | . . . . Core Remaining (%) 100 | 100 . . . Volleys Fired 84 | 6 1 76 1 Largest 2 | 2 2 2 1 Hottest 110 | 40 40 110 . Shots Fired 152 | 12 2 137 1 Gun 128 | 12 2 114 . Cannon 21 | . . 21 . Launcher 2 | . . 2 . Special 1 | . . . 1 Kinetic 115 | 12 2 101 . Thermal 34 | . . 34 . Explosive 2 | . . 2 . Electromagnetic . | . . . . Robot Hit Streak 12 | 6 2 12 7 Robot Miss Streak 3 | 3 1 3 . Penetration Max . | . . . . Secondary Targets . | . . . . Shots Hit Robots 88 | 7 1 79 1 Core Hits 35 | 4 . 31 . Critical Kills 1 | . . 1 . Critical Parts Destroyed . | . . . . Critical Strikes 1 | . . 1 . Destroy 1 | . . 1 . Melee Attacks 20 | . . 10 10 Impact . | . . . . Slashing . | . . . . Piercing 20 | . . 10 10 Sneak Attacks 1 | . . 1 . Combat Hostiles . | . . . . Follow-up Attacks . | . . . . Damage Inflicted 1876 | 57 8 1811 . Guns 1438 | 57 8 1373 . Cannons 304 | . . 304 . Explosions 85 | . . 85 . Melee 49 | . . 49 . Ramming . | . . . . Kinetic 1292 | 57 8 1227 . Thermal 450 | . . 450 . Explosive 85 | . . 85 . Electromagnetic . | . . . . Impact . | . . . . Slashing . | . . . . Piercing 49 | . . 49 . Highest Corruption . | . . . . Average Corruption . | . . . . Corruption Purged . | . . . . Corruption Blocked . | . . . . Overload Shots . | . . . . Overflow Damage . | . . . . Projectiles . | . . . . Explosions . | . . . . Melee . | . . . . Knockbacks . | . . . . Impact . | . . . . Kinetic . | . . . . Secondary . | . . . . Self-Inflicted Damage 12 | . . 12 . Shots 1 | . . 1 . Rammed . | . . . . Targets Rammed . | . . . . Kicked . | . . . . Crushed . | . . . . Highest Temperature 31 | . 6 20 31 Average Temperature 11 | . 6 8 20 Received Heat Transfer 371 | . 6 222 143 Siege Activations . | . . . . Martial Activations . | . . . . Shielding Activations . | . . . . Robots Disrupted . | . . . . Combat Hostiles . | . . . . Robots Corrupted . | . . . . Combat Hostiles . | . . . . Parts Fried . | . . . . Impact Corruptions . | . . . . Robots Melted . | . . . . Combat Hostiles . | . . . . Parts Melted . | . . . . Heat Transferred 582 | . . 582 . Parts Sabotaged . | . . . . Parts Stolen . | . . . . Parts Stripped . | . . . . Power Chain Reactions . | . . . . Alert | -11 -10 -10 -8 ------- Run | Yrd Mat Sub Scr Maximum Alert Level . | . . . . Low Security (%) 100 | 100 100 . . Level 1 . | . . . . Level 2 . | . . . . Level 3 . | . . . . Level 4 . | . . . . Level 5 . | . . . . High Security . | . . . . Max Security . | . . . . Peak Influence 7 | 5 7 . . Initial . | . . . . Average . | . . . . Influence Increases 132 | 5 7 120 . Destroy 0b10 Robot/C 100 | . . 100 . Destroy 0b10 Robot/NC 5 | 5 . . . Destroy Leader 20 | . . 20 . Successful Hack 7 | . 7 . . Influence Decreases 132 | 5 7 120 . Time Decay 132 | 5 7 120 . Squads Dispatched . | . . . . Investigation . | . . . . Extermination . | . . . . Reinforcement . | . . . . Assault . | . . . . Garrison . | . . . . Intercept . | . . . . Searches Triggered . | . . . . Construction Impeded . | . . . . Haulers Reinforced . | . . . . Active Scanning Responses . | . . . . Cargo Convoy Interrupts . | . . . . Stealth | -11 -10 -10 -8 --------- Run | Yrd Mat Sub Scr Distress Signals . | . . . . Communications Jammed . | . . . . Distress Signals . | . . . . Times Spotted 50 | . 1 20 29 Peak Tracking Total 5 | . 1 4 5 Tactical Retreats 1 | . . . 1 Traps | -11 -10 -10 -8 ------- Run | Yrd Mat Sub Scr Traps Triggered . | . . . . Indirectly . | . . . . Trap Hack Attempts . | . . . . Triggered . | . . . . Disarmed . | . . . . Reprogrammed . | . . . . Reused . | . . . . Traps Extracted . | . . . . Installed . | . . . . Triggered . | . . . . Machines | -11 -10 -10 -8 ---------- Run | Yrd Mat Sub Scr Machines Disabled 3 | . . 1 2 Max in Single Turn 1 | . . 1 1 Machines Repaired . | . . . . Machines Dismantled . | . . . . Machines Sabotaged . | . . . . Overloaded Fab Kills . | . . . . Hacking | -11 -10 -10 -8 --------- Run | Yrd Mat Sub Scr Machines Accessed 5 | . 1 4 . Terminals 1 | . 1 . . Fabricators . | . . . . Repair Stations . | . . . . Recycling Units . | . . . . Scanalyzers . | . . . . Garrison Access . | . . . . Total Hacks 10 | . 4 6 . Successful 7 | . 1 6 . Failed 3 | . 3 . . Catastrophic 1 | . 1 . . Database Lockouts . | . . . . Manual 4 | . 4 . . Terminals 4 | . 4 . . Fabricators . | . . . . Repair Stations . | . . . . Recycling Units . | . . . . Scanalyzers . | . . . . Garrison Access . | . . . . Terminal Hacks 7 | . 1 6 . Record 3 | . . 3 . Part Schematic 1 | . 1 . . Open Door 1 | . . 1 . Proto ID Catalog 1 | . . 1 . Release Object 1 | . . 1 . Fabricator Hacks . | . . . . Repair Station Hacks . | . . . . Recycling Unit Hacks . | . . . . Scanalyzer . | . . . . Garrison Access Hacks . | . . . . Unauthorized Hacks . | . . . . Terminals . | . . . . Fabricators . | . . . . Repair Stations . | . . . . Recycling Units . | . . . . Scanalyzers . | . . . . Garrison Access . | . . . . Data Cores Recovered 1 | . 1 . . Used . | . . . . Hacking Detections 1 | . 1 . . Full Trace Events . | . . . . Feedback Events . | . . . . Feedback Blocked . | . . . . Robot Schematics Acquired . | . . . . Robots Built . | . . . . Authchips . | . . . . Time . | . . . . Total Robot Build Rating . | . . . . Part Schematics Acquired 1 | . 1 . . Parts Built . | . . . . Authchips . | . . . . Time . | . . . . Total Part Build Rating . | . . . . Part Studies Acquired . | . . . . Parts Repaired . | . . . . Time . | . . . . Parts Recycled . | . . . . Recycled Matter . | . . . . Retrieved Matter . | . . . . Retrieved Components . | . . . . Parts Scanalyzed . | . . . . Part Schematics Acquired . | . . . . Parts Damaged . | . . . . Bothacking | -11 -10 -10 -8 ------------ Run | Yrd Mat Sub Scr Used RIF Installer . | . . . . Robots Hacked . | . . . . Non-combat . | . . . . Combat . | . . . . Robot Hacks Applied . | . . . . Relay Couplers Released . | . . . . Fabnet Peak Effective % . | . . . . Robots Rewired . | . . . . Allies Hacked . | . . . . Hacks Repelled . | . . . . Allies | -11 -10 -10 -8 -------- Run | Yrd Mat Sub Scr Total Allies 2 | . . . 2 Largest Group 1 | . . . 1 Highest-Rated Group 66 | . . . 66 Highest-Rated Ally 66 | . . . 66 Total Orders . | . . . . Ally Attacks 25 | . . . 25 Total Damage 849 | . . . 849 Kills 9 | . . . 9 Allies Corrupted . | . . . . Allies Melted 1 | . . . 1 Intel | -11 -10 -10 -8 ------- Run | Yrd Mat Sub Scr Active Infowar (turns) 1426 | . . 1426 . Seismic 1426 | . . 1426 . Robot Analysis Total . | . . . . Derelict Logs Recovered 7 | . . 2 5 Drone Launches . | . . . . Drone Recoveries . | . . . . Exploration | -11 -10 -10 -8 ------------- Run | Yrd Mat Sub Scr Turns Passed 9269 | 97 114 4181 4877 Spaces Moved 5514 | 51 99 2059 3305 Core 95 | 49 39 7 . Treads 321 | . . 321 . Legs 716 | 2 60 654 . Wheels 2817 | . . 1077 1740 Hover 1565 | . . . 1565 Flight . | . . . . Fastest Speed 50 | 50 50 120 56 Average Speed 150 | 131 106 181 132 Slowest Speed 700 | 150 190 700 395 Overloaded Moves . | . . . . Propulsion Burnouts . | . . . . Robots Hopped . | . . . . Potential Cave-ins . | . . . . Cave-ins Triggered . | . . . . Exploration Rate (%) 46 | 4 19 76 87 Regions Visited 3 Branch Regions 2 Pre-discovered Areas 1 | . . 1 . Known Exits Taken . | . . . . Unknown Exits Taken 3 | 1 1 1 . Scrap Searched 4 | . . . 4 Spaces Dug 4 | . . 4 . Terrain Destroyed 18 | . . 18 . Melee 3 | . . 3 . Projectile 5 | . . 5 . AOE 10 | . . 10 . Terrain Rammed . | . . . . Walls Destroyed . | . . . . Machines Disabled . | . . . . Actions | -11 -10 -10 -8 --------- Run | Yrd Mat Sub Scr Total 6364 | 69 107 2363 3825 Wait 524 | . . 119 405 Move 5511 | 50 98 2058 3305 Hop . | . . . . Pick Up 107 | 6 5 45 51 Fast Attach 14 | 5 . 8 1 Attach 19 | . 2 10 7 Detach 3 | . . 2 1 Swap 15 | . . 11 4 Drop 67 | 2 1 24 40 Fire 84 | 6 1 76 1 Melee 20 | . . 10 10 Ram . | . . . . Kick . | . . . . Crush . | . . . . Escape Stasis . | . . . . Rewire . | . . . . Trap . | . . . . Miscellaneous . | . . . . Route ------- -11/Scrapyard -10/Materials (discovered 2 exits: [*Min] / *Sub) -10/Subcaves (discovered 4 exits: [*Mat x2] / *Scr x2) -8/Scraptown (discovered 2 exits: *Fac x2) History --------- Turn | Location | Event 11 | -11/Scrapyard | Discovered new exit (range 14) 98 | -11/Scrapyard | Entered Materials 99 | -10/Materials | Met a group of wandering Federalists 162 | -10/Materials | Discovered new exit (range 16) 197 | -10/Materials | Discovered new exit (range 9) 212 | -10/Materials | Entered Subcaves 213 | -10/Subcaves | Continued accompanying wandering Federalists (5) 213 | -10/Subcaves | Approached by a straggling Scientist 234 | -10/Subcaves | Shifting Twisted Machinery released Sub. Beam Cannon 237 | -10/Subcaves | Shifting Twisted Machinery released Sub. Machine Gun 307 | -10/Subcaves | Build established: Mutant 439 | -10/Subcaves | Wandering Federalist uncovered a shortcut to Scraptown 835 | -10/Subcaves | A swath of the cavern ceiling suddenly collapsed 859 | -10/Subcaves | Discovered new exit (range 6) 1080 | -10/Subcaves | Visited Clippyterm 1085 | -10/Subcaves | Learned location of Section 7 (-3) 1146 | -10/Subcaves | Discovered new exit (range 10) 1565 | -10/Subcaves | A Subdweller sparked back to life 1565 | -10/Subcaves | A Subdweller sparked back to life 1565 | -10/Subcaves | A Subdweller sparked back to life 1565 | -10/Subcaves | Ambushed by Subdweller buried in earth 1582 | -10/Subcaves | Core integrity fell below 50% 1642 | -10/Subcaves | Found Prototype Protection 1646 | -10/Subcaves | Lost 7 parts (2p2n3w) 1878 | -10/Subcaves | A swath of the cavern ceiling suddenly collapsed 2074 | -10/Subcaves | Build established: Scavenger-Mutant 2190 | -10/Subcaves | Shifting Twisted Machinery released Mak. Light Armor Plating 2194 | -10/Subcaves | Learned 2 Materials zone layouts 2219 | -10/Subcaves | Shifting Twisted Machinery released Spk. Treads 3266 | -10/Subcaves | Visited 4L-MR0's lab 3273 | -10/Subcaves | Identified Gun Armor 3280 | -10/Subcaves | Found Powered Cannon 3924 | -10/Subcaves | Build established: Hauler-Mutant 4053 | -10/Subcaves | Found SUBCON Basin 4393 | -10/Subcaves | Entered Scraptown 4587 | -8/Scraptown | Heard Great Nut preacher, LISTEN AND RECITE! 4729 | -8/Scraptown | Scanned Subdweller tech in exchange for log data 4745 | -8/Scraptown | Learned location of 1 exit from Upper Caves 4749 | -8/Scraptown | Learned location of 1 exit from Research 4761 | -8/Scraptown | Learned Factory garrison access intel 4765 | -8/Scraptown | Learned Research trap positions 4994 | -8/Scraptown | Visited UFD Registry 4994 | -8/Scraptown | Registered with UFD as "Gravplate" 5298 | -8/Scraptown | Delivered Scrap Shield to a Scientist 5389 | -8/Scraptown | Visited Junk Repository 5453 | -8/Scraptown | Visited Scrapoid Pod Storage 5459 | -8/Scraptown | Found Scrapoid Pod 5485 | -8/Scraptown | Visited Derelict Rescue Squad 5494 | -8/Scraptown | Found DRS Beacon 5531 | -8/Scraptown | Visited Research Penetration Think Tank 5551 | -8/Scraptown | Build established: Scavenger-Mutant 5558 | -8/Scraptown | Visited Chapter 10 5601 | -8/Scraptown | Visited Science Testing Area 5628 | -8/Scraptown | Visited Curators Association 5673 | -8/Scraptown | Visited Scrap Suit Storage 5696 | -8/Scraptown | Visited Botcube Research 5713 | -8/Scraptown | Visited Junk Repository 5892 | -8/Scraptown | Visited Cyclists 5901 | -8/Scraptown | Entered Cyclist Reading Room 5971 | -8/Scraptown | Visited IN-MT5's Study 6408 | -8/Scraptown | Discovered new exit (range 11) 6601 | -8/Scraptown | Found Botcube 7005 | -8/Scraptown | Visited The Evicted 7041 | -8/Scraptown | Visited Assassins FH 7437 | -8/Scraptown | Build established: Mutant 7545 | -8/Scraptown | Botcube activated 7824 | -8/Scraptown | Found Scrap Suit 8506 | -8/Scraptown | Botcube activated 8528 | -8/Scraptown | Botcube completed mutation into legged form, armed with 2 guns. 8530 | -8/Scraptown | Attached CPS modules to Mutated Botcube. 8600 | -8/Scraptown | Met Optimus 8600 | -8/Scraptown | Accepted into 0bPrime 9000 | -8/Scraptown | Civil war broke out across Scraptown 9004 | -8/Scraptown | Found Surveybot 24 Chip 9041 | -8/Scraptown | Core integrity fell below 20% 9074 | -8/Scraptown | Identified exit to Factory 9270 | -8/Scraptown | Destroyed by HM-XOZ(j) with Overtuned Pulse Rifle Last Messages --------------- 09227_ MA-5V6(g) destroyed. 09235_ Bolt penetrates Machine. 09241_ Machine disabled. 09243_ Slug penetrates 7I-Y4T(h). 09243_ Machine disabled. 09245_ Bolt penetrates Machine. 09245_ Bolt penetrates 2R-KGE(j). 09245_ 7I-Y4T(h) destroyed. 09245_ Slug penetrates Wall. 09248_ EI-5B3(j) IFF system glitched. 09248_ 0P-B9H(j) suffers critical hit (Burn). 09248_ EI-5B3(j) destroyed. 09256_ Slug penetrates Machine. 09258_ Penetrated by Bolt. 09259_ 9A-QL4(M) destroyed. 09260_ 0P-B9H(j) heat spikes uncontrollably. 09260_ 0P-B9H(j) suffers critical hit (Burn). 09260_ 0P-B9H(j) destroyed. 09261_ Acquired 10 matter. 09270_ Penetrated by Bolt. Map ----- +----------------------------------------------------+ | #???????#" ==! & "# | | #???????#" %*%! [ "# | | #???????#" =[!= /[=! ! "# | | #????####" % ] | | #???#"""" !! """"""""""""""""""""""""""" [& "# | | #???#"""" *%! """"""""""""""""""""""""""" "# | | #???#"""" [= "###### ################"" "# | | #???#"""" "# ##????????#"" "# | | #???#"""" "# X"#????????#"" "# | | ###?#"""" [ "# "" "" ##????????#"" "# | | ""#"#""""/%!%=%="# "" "" X"#??????###""== "# | | """"#""" =!!&!=!" " " ######### #"" "# | | ""#######"!!!![=!! !=! !=% | | ###?????#"!*%[!=% %[! [ "# | | #########*[!*=%!"# " &%= ######### #"" "# | | % =%!==[!*%!=!""" ""[!* " " #??????###"" "# | | % %/! !%===[=! # "% "" ##????????#"" "# | | ! !*!%[!%!%!" X"#????????#"" "# | | % ! =! # ##????????#"" "# | | = [%! =% ###### ################"" "# | | * *! """"" """""""""""""""""" "# | | !="""""!""""""""""" """"" | | | =%%%!= ! !%=%* "# | | *!*[ [% =!%[[ ! "# | | ! !! * %! *! "# | | %= #""""#" ![=% !=@ = j!!% [ # | | ! #????#" =%*% *%==![ *%h !!! | | ! #????#""""""= """ """%"""" """"""*"""""" # | | ####????####### ###########=########### ###### # | | #????????# #??#" *!!%= #??# # # | | #????????## ##??#" =%!"""#??# # # | | #????????#" "#??# " % ""#??# # [ # # # | | #????????#"! "#??#"" [ ""#??#* # !# !# # | | #????????#" "#??#"" """"#??#]!#]!]#= # # | | #????????#"! !"#??####"#######??########### # | | #????????#"! "#??????????????????????????# | | #????????## X####??????????????????????????# | | #????????#" "#?????????????????????????????# | | #????????#"! "?????????????????????????????# | | #????????#######?????????????????????????????# | | #????????????????????????????????????????????# # | | #??????####?????############################## # | | #??????? ???#"""##"""##"""##"""##"""##" "# " | | #????????""""" ## ""##|""##" "##"""##"" ##" # " | | #????????""""" | | #????????""""" " | | #????????""""" " | | #?????????"""" ##"""##"""##"" ##" "## ! ##"" ## ## | | #????????? ?#"""##"""##"""##"""##"""##"""####? | | #????????#####?????????????##############?####???? | +----------------------------------------------------+ Best States ------------- Heat Dissipation 25 Energy Generation 15 Energy Capacity 275 Matter Stores 300 Matter Capacity 300 Sight Range 16 Terrain Scan Density 10 Additional Mass Support 9 Armor Coverage 150 Evasion (%) 55 Recoil Reduction 2 Item Schematics ----------------- Hcp. Storage Unit | -10/Materials | Hacked Robot Schematics ------------------ None Fabricated ------------ Nothing Repaired ---------- Nothing Studied --------- None Alien Tech Used ----------------- None Achievements -------------- Art Critic Frankenstein Challenges ------------ None Game ------ Seed ExperimentalDynamicFirepult Manual? 0 Play Time 00:50:16 Cumulative 438.2 hours Start 2026.02.24 @ 17:33:24 End 2026.02.25 @ 09:03:36 Sessions 3 Manual Loads 0 Difficulty Rogue Special Mode None Game No. 284 Rogue 284 Adventurer 0 Explorer 0 Win Type - Total 29 Types 10/0/9/1/1/0/3/2/2/1 Lore% 84 Gallery% 78 Achievement% 72 Wizard Run 0 Options --------- Layout 1 ASCII 0 Keyboard 0 Movement Mouse Keybinds 0 Fullscreen 2 Font 24/Smallcaps Map View 50x35 Zoom Use 0% Tactical HUD 1 Map Filters NONE Filters NONE Steam 1 RUN: c271d0d1-fdcc-41ac-bc60-7a8cba82501b